bitfinex-derivatives/quotes_BTCF0:USTF0_20241122
["timestamp","ask_amount","ask_price","bid_price","bid_amount"]
[1732306090609,0.12788,99186.0,99168.0,0.3608]
[1732306090913,0.12788,99186.0,99173.0,0.050368]
[1732306091103,0.12788,99186.0,99168.0,0.3608]
[1732306091606,0.12788,99186.0,99177.0,0.050366]
[1732306092405,0.54171023,99188.0,99168.0,0.3608]
[1732306092605,0.12212,99187.0,99182.0,0.050364]
[1732306092807,0.12212,99187.0,99169.0,0.05037]
[1732306093103,0.12212,99187.0,99175.0,0.050367]
[1732306094008,0.12212,99187.0,99158.0,0.3608]
[1732306094009,0.3608,99179.0,99158.0,0.3608]
[1732306094199,0.050369,99172.0,99158.0,0.3608]
[1732306094405,0.3608,99166.0,99158.0,0.3608]
[1732306094605,0.1325,99165.0,99158.0,0.3608]
[1732306095603,0.1212,99164.0,99158.0,0.3608]
[1732306095815,0.12212,99163.0,99158.0,0.411176]
[1732306096110,0.12212,99163.0,99158.0,0.3608]
[1732306097306,0.12212,99163.0,99160.0,0.050375]
[1732306097610,0.12212,99163.0,99158.0,0.3608]
[1732306097806,0.12212,99163.0,99158.0,0.411176]
[1732306098406,0.12212,99163.0,99158.0,0.3608]
[1732306099710,0.050376,99159.0,99158.0,0.3608]
[1732306099900,0.30252,99162.0,99133.0,0.3608]
[1732306100104,0.3608,99143.0,99137.0,0.050387]
[1732306100310,0.12212,99142.0,99133.0,0.3608]
[1732306101416,0.12212,99142.0,99136.0,0.050387]
[1732306101810,0.12212,99142.0,99133.0,0.3608]
[1732306102020,0.12212,99142.0,99140.0,0.050385]
[1732306102407,0.12212,99141.0,99140.0,0.050385]
[1732306102808,0.12212,99141.0,99133.0,0.3608]
[1732306104315,0.12212,99141.0,99137.0,0.050387]
[1732306104620,0.12212,99141.0,99140.0,0.050385]
[1732306105609,0.3608,99143.0,99142.0,0.050384]
[1732306105816,0.48292,99145.0,99144.0,0.050383]
[1732306106011,0.3608,99154.0,99144.0,0.050383]
[1732306106211,0.12212,99173.0,99150.0,0.3608]
[1732306106523,0.3608,99178.0,99156.0,0.14608088]
[1732306106714,0.3608,99178.0,99157.0,0.1159]
[1732306107110,0.3608,99178.0,99159.0,0.050376]
[1732306107515,0.3608,99178.0,99163.0,0.050373]
[1732306107716,0.3608,99178.0,99165.0,0.050373]
[1732306108014,0.3608,99178.0,99157.0,0.1159]
[1732306108315,0.12212,99177.0,99158.0,0.3608]
[1732306108509,0.12212,99177.0,99166.0,0.050372]
[1732306108711,0.12212,99177.0,99167.0,0.1216]
[1732306109214,0.12212,99177.0,99172.0,0.050369]
[1732306109420,0.12212,99177.0,99174.0,0.050368]
[1732306109610,0.12212,99177.0,99173.0,0.050368]
[1732306110319,0.12212,99177.0,99168.0,0.1141]
[1732306110519,0.12212,99177.0,99176.0,0.050367]
[1732306111021,0.12212,99177.0,99175.0,0.050367]
[1732306111314,0.12212,99177.0,99168.0,0.1141]
[1732306111617,0.12212,99177.0,99174.0,0.050368]
[1732306112115,0.05056958,99190.0,99168.0,0.1141]
[1732306112116,0.00151318,99190.0,99176.0,0.3608]
[1732306112321,0.00151318,99190.0,99189.0,0.05036]
[1732306113020,0.00151318,99190.0,99185.0,0.1235]
[1732306113214,0.00151318,99190.0,99177.0,0.050366]
[1732306113412,0.00151318,99190.0,99178.0,0.4843]
[1732306114008,0.00151318,99190.0,99189.0,0.05036]
[1732306114530,0.00151318,99190.0,99184.0,0.050363]
[1732306114724,0.00151318,99190.0,99178.0,0.4843]
[1732306114725,0.3608,99189.0,99183.0,0.050363]
[1732306115023,0.3608,99189.0,99184.0,0.050363]
[1732306115622,0.3608,99189.0,99178.0,0.535186]
[1732306115920,0.3608,99189.0,99178.0,0.534666]
[1732306116123,0.3608,99186.0,99178.0,0.4843]
[1732306116823,0.00151318,99190.0,99178.0,0.3608]
[1732306117329,0.00151318,99190.0,99179.0,0.050365]
[1732306118016,0.14759406,99190.0,99178.0,0.3608]
[1732306118226,0.00151318,99190.0,99178.0,0.3608]
[1732306118822,0.14925944,99190.0,99178.0,0.3608]
[1732306119018,0.09889944,99190.0,99178.0,0.3608]
[1732306119215,0.14925944,99190.0,99178.0,0.3608]
[1732306119521,0.12212,99192.0,99178.0,0.3608]
[1732306119915,0.12212,99192.0,99179.0,0.050365]
[1732306120220,0.12212,99192.0,99178.0,0.3608]
[1732306120521,0.12212,99192.0,99180.0,0.050365]
[1732306120709,0.12212,99192.0,99178.0,0.3608]
[1732306122025,0.09738626,99190.0,99178.0,0.3608]
[1732306123318,0.122,99189.0,99178.0,0.3608]
[1732306125221,0.172361,99189.0,99178.0,0.3608]
[1732306125529,0.122,99189.0,99178.0,0.3608]
[1732306126821,0.122,99189.0,99179.0,0.050365]
[1732306127023,0.122,99189.0,99178.0,0.3608]
[1732306127838,0.122,99189.0,99180.0,0.050365]
[1732306128329,0.122,99189.0,99178.0,0.3608]
[1732306130134,0.122,99188.0,99178.0,0.3608]
[1732306132252,0.2404,99188.0,99178.0,0.3608]
[1732306132457,0.3608,99184.0,99160.0,0.02010568]
[1732306132676,0.09738626,99177.0,99160.0,0.02010568]
[1732306132968,0.3608,99168.0,99157.0,0.59182]
[1732306133144,0.122,99167.0,99158.0,0.02010601]
[1732306133463,0.3608,99168.0,99157.0,0.5913]
[1732306133464,0.3608,99160.0,99157.0,0.1152]
[1732306133663,0.172376,99159.0,99157.0,0.00052]
[1732306133859,0.122,99159.0,99157.0,0.00052]
[1732306134563,0.3608,99168.0,99162.0,0.050374]
[1732306134764,0.122,99167.0,99157.0,0.050376]
[1732306135068,0.122,99167.0,99158.0,0.1129]
[1732306135960,0.122,99166.0,99159.0,0.050376]
[1732306136171,0.050373,99164.0,99143.0,0.050384]
[1732306136462,0.3608,99152.0,99142.0,0.38090601]
[1732306137469,0.3608,99152.0,99142.0,0.43129001]
[1732306138174,0.12204,99151.0,99143.0,0.050384]
[1732306138565,0.12204,99151.0,99142.0,0.38090601]
[1732306138761,0.12204,99151.0,99145.0,0.050383]
[1732306138961,0.12204,99154.0,99142.0,0.38090601]
[1732306139163,0.12204,99154.0,99148.0,0.050381]
[1732306139762,0.12204,99154.0,99146.0,0.050382]
[1732306139965,0.12204,99154.0,99148.0,0.050381]
[1732306140161,0.12204,99154.0,99142.0,0.38090601]
[1732306140416,0.12204,99154.0,99150.0,0.05038]
[1732306140774,0.12204,99160.0,99152.0,0.050379]
[1732306141076,0.12204,99160.0,99153.0,0.1159]
[1732306143576,0.05036768,99170.0,99159.0,0.3608]
[1732306143772,0.05108444,99178.0,99160.0,0.32818626]
[1732306143972,0.12204,99179.0,99169.0,0.050371]
[1732306144468,0.12204,99179.0,99160.0,0.2308]
[1732306144870,0.3608,99175.0,99170.0,0.05037]
[1732306145076,0.3608,99175.0,99160.0,0.2308]
[1732306145473,0.3608,99175.0,99169.0,0.050371]
[1732306145672,0.3608,99175.0,99160.0,0.2308]
[1732306145869,0.3608,99175.0,99170.0,0.05037]
[1732306146272,0.12204,99179.0,99170.0,0.05037]
[1732306146472,0.12204,99179.0,99172.0,0.050369]
[1732306147178,0.12204,99179.0,99161.0,0.050374]
[1732306147367,0.00151334,99180.0,99162.0,0.050374]
[1732306147572,0.00151334,99180.0,99179.0,0.050366]
[1732306148021,0.00151334,99180.0,99179.0,0.411166]
[1732306148285,0.3608,99197.0,99179.0,0.66328]
[1732306148473,0.3608,99189.0,99187.0,0.09738626]
[1732306148673,0.3608,99188.0,99172.0,0.3608]
[1732306149267,0.3608,99174.0,99172.0,0.02010541]
[1732306149677,0.050369,99172.0,99152.0,0.00151275]
[1732306149882,0.411179,99153.0,99152.0,0.00151275]
[1732306150164,0.29167276,99153.0,99152.0,0.00151275]
[1732306150366,0.122,99164.0,99152.0,0.00151275]
[1732306150766,0.3608,99158.0,99152.0,0.00151275]
[1732306151169,0.3608,99155.0,99152.0,0.00151275]
[1732306151579,0.05038,99151.0,99120.0,0.411195]
[1732306151779,0.3608,99129.0,99120.0,0.00056]
[1732306152071,0.3608,99129.0,99100.0,0.3608]
[1732306152072,0.3608,99121.0,99119.0,0.050396]
[1732306153071,0.3608,99121.0,99113.0,0.050399]
[1732306153570,0.3608,99121.0,99104.0,0.02010541]
[1732306153571,0.3608,99121.0,99110.0,0.14623906]
[1732306154071,0.12188,99122.0,99121.0,0.050395]
[1732306154468,0.3608,99129.0,99128.0,0.050391]
[1732306156485,0.3608,99129.0,99122.0,0.050394]
[1732306156870,0.3608,99131.0,99120.0,0.1136]
[1732306157065,0.12188,99137.0,99120.0,0.1136]
[1732306157272,0.3608,99141.0,99132.0,0.050389]
[1732306157475,0.3608,99141.0,99120.0,0.1136]
[1732306157476,0.12188,99140.0,99120.0,0.1136]
[1732306158179,0.12192,99140.0,99125.0,0.050393]
[1732306158472,0.12192,99140.0,99120.0,0.1136]
[1732306158652,0.3608,99131.0,99120.0,0.25983906]
[1732306158854,0.12192,99140.0,99127.0,0.050392]
[1732306159053,0.12192,99140.0,99120.0,0.25983906]
[1732306159253,0.12192,99140.0,99130.0,0.05039]
[1732306159444,0.3608,99131.0,99130.0,0.05039]
[1732306159856,0.3608,99131.0,99127.0,0.050392]
[1732306160546,0.3608,99131.0,99120.0,0.25983906]
[1732306160851,0.12192,99140.0,99120.0,0.25983906]
[1732306161057,0.12192,99140.0,99135.0,0.050388]
[1732306161351,0.3608,99139.0,99130.0,0.14623906]
[1732306161551,0.3608,99139.0,99120.0,0.25983906]
[1732306161851,0.3608,99139.0,99129.0,0.14623906]
[1732306162354,0.3608,99140.0,99136.0,0.050387]
[1732306162652,0.05014031,99147.0,99129.0,0.14623906]
[1732306162949,0.3608,99155.0,99147.0,0.050382]
[1732306163140,0.12192,99154.0,99140.0,0.14623906]
[1732306163345,0.3608,99167.0,99159.0,0.050376]
[1732306163542,0.04917965,99167.0,99159.0,0.050376]
[1732306163740,0.12192,99174.0,99150.0,0.14623906]
[1732306163945,0.3608,99175.0,99160.0,0.14623906]
[1732306164142,0.3608,99175.0,99174.0,0.050368]
[1732306164342,0.3608,99184.0,99176.0,0.050367]
[1732306164558,0.3608,99184.0,99178.0,0.050366]
[1732306164953,0.3608,99189.0,99178.0,0.050366]
[1732306165153,0.1,99200.0,99188.0,0.050361]
[1732306165352,0.1,99200.0,99198.0,0.050355]
[1732306166662,0.1,99200.0,99199.0,0.1119]
[1732306167051,0.1,99200.0,99199.0,0.41434]
[1732306167243,0.1,99200.0,99199.0,0.464695]
[1732306167755,0.3608,99227.0,99199.0,0.464695]
[1732306167756,0.12792,99227.0,99199.0,0.825495]
[1732306167959,0.12792,99236.0,99222.0,0.050343]
[1732306168263,0.3608,99238.0,99225.0,0.3608]
[1732306168455,0.04950852,99242.0,99231.0,0.050339]
[1732306168752,0.04950852,99242.0,99225.0,0.3608]
[1732306169348,0.3608,99247.0,99225.0,0.3608]
[1732306169549,0.3608,99247.0,99236.0,0.050337]
[1732306171061,0.3608,99247.0,99230.0,0.05034]
[1732306171360,0.3608,99247.0,99220.0,0.14623906]
[1732306171361,0.3608,99238.0,99229.0,0.05034]
[1732306171547,0.3608,99230.0,99216.0,0.0201009]
[1732306171747,0.3608,99217.0,99216.0,0.0201009]
[1732306172147,0.3608,99217.0,99207.0,0.3608]
[1732306172558,0.3608,99217.0,99211.0,0.0201009]
[1732306173258,0.3608,99217.0,99207.0,0.00052]
[1732306173560,0.3608,99209.0,99195.0,0.02161302]
[1732306173756,0.3608,99209.0,99195.0,0.00151212]
[1732306173757,0.3608,99196.0,99195.0,0.00151212]
[1732306173955,0.48868,99196.0,99161.0,0.050374]
[1732306174255,0.3608,99172.0,99152.0,0.1095]
[1732306174656,0.3608,99172.0,99154.0,0.050378]
[1732306174863,0.3608,99164.0,99153.0,0.050379]
[1732306175159,0.3608,99164.0,99149.0,0.3608]
[1732306175350,0.3608,99154.0,99141.0,0.00151263]
[1732306175560,0.3608,99146.0,99141.0,0.00151263]
[1732306178970,0.12788,99153.0,99141.0,0.00151263]
[1732306179269,0.12788,99152.0,99141.0,0.00151263]
[1732306179761,0.12788,99152.0,99147.0,0.050382]
[1732306180468,0.12788,99152.0,99144.0,0.02011583]
[1732306181762,0.3608,99165.0,99153.0,0.050379]
[1732306181963,0.12792,99164.0,99150.0,0.14623906]
[1732306182164,0.12792,99164.0,99149.0,0.05038]
[1732306182366,0.12792,99164.0,99144.0,0.02011583]
[1732306182872,0.12792,99164.0,99154.0,0.050378]
[1732306183062,0.12792,99164.0,99144.0,0.02011583]
[1732306183371,0.12792,99164.0,99156.0,0.050377]
[1732306183567,0.12792,99164.0,99157.0,0.050376]
[1732306184571,0.12792,99164.0,99154.0,0.050378]
[1732306184769,0.12792,99164.0,99158.0,0.050376]
[1732306184964,0.12792,99164.0,99150.0,0.14623906]
[1732306185173,0.3608,99165.0,99150.0,0.14623906]
[1732306185469,0.48872,99165.0,99153.0,0.050378]
[1732306185677,0.48872,99165.0,99147.0,0.3608]
[1732306185857,0.48872,99165.0,99147.0,0.411182]
[1732306186058,0.3608,99148.0,99144.0,0.02011583]
[1732306188166,0.3608,99157.0,99144.0,0.02011583]
[1732306188474,0.12792,99156.0,99144.0,0.02011583]
[1732306188882,0.3608,99149.0,99144.0,0.02011583]
[1732306189562,0.3608,99149.0,99146.0,0.050382]
[1732306190075,0.3608,99149.0,99148.0,0.050381]
[1732306190782,0.3608,99149.0,99146.0,0.050382]
[1732306191274,0.3608,99149.0,99144.0,0.02011583]
[1732306198669,0.41047517,99149.0,99144.0,0.02011583]
[1732306199072,0.3608,99149.0,99144.0,0.02011583]
[1732306199777,0.30422721,99149.0,99144.0,0.02011583]
[1732306201676,0.35460821,99149.0,99144.0,0.02011583]
[1732306201881,0.050381,99148.0,99144.0,0.02011583]
[1732306202175,0.30422721,99149.0,99144.0,0.02011583]
[1732306202384,0.23508489,99149.0,99144.0,0.02011583]
[1732306203181,0.23508489,99149.0,99141.0,0.00151263]
[1732306203383,0.050384,99142.0,99141.0,0.00151263]
[1732306203579,0.352984,99142.0,99141.0,0.00151263]
[1732306204474,0.050383,99146.0,99141.0,0.00151263]
[1732306204678,0.050383,99145.0,99141.0,0.00151263]
[1732306205082,0.12384,99144.0,99141.0,0.00151263]
[1732306205275,0.050384,99142.0,99141.0,0.00151263]
[1732306205477,0.050384,99142.0,99135.0,0.050388]
[1732306205685,0.050384,99142.0,99138.0,0.018763]
[1732306205886,0.3608,99139.0,99138.0,0.018763]
[1732306206074,0.411186,99139.0,99130.0,0.05039]
[1732306206387,0.3608,99131.0,99118.0,0.00151325]
[1732306206683,0.3608,99121.0,99118.0,0.00151325]
[1732306206880,0.050396,99119.0,99118.0,0.00151325]
[1732306207482,0.12388,99120.0,99118.0,0.00151325]
[1732306207789,0.06729419,99120.0,99118.0,0.00151325]
[1732306208690,0.06729419,99120.0,99110.0,0.0504]
[1732306208893,0.21353325,99120.0,99111.0,0.0504]
[1732306209198,0.21353325,99120.0,99110.0,0.018763]
[1732306209693,0.15694203,99120.0,99110.0,0.018763]
[1732306210303,0.15694203,99120.0,99110.0,0.069163]
[1732306211000,0.12388,99119.0,99110.0,0.069163]
[1732306211899,0.12388,99119.0,99110.0,0.018763]
[1732306213101,0.12388,99119.0,99111.0,0.018763]
[1732306214502,0.050405,99101.0,99100.0,0.1]
[1732306214707,0.535085,99101.0,99100.0,0.1]
[1732306214903,0.48468,99101.0,99100.0,0.1]
[1732306215792,0.535085,99101.0,99100.0,0.1]
[1732306215990,0.05041,99091.0,99075.0,0.3608]
[1732306216201,0.12388,99091.0,99075.0,0.3608]
[1732306216396,0.36181958,99091.0,99084.0,0.050413]
[1732306216593,0.36181958,99091.0,99065.0,0.141123]
[1732306216594,0.36181958,99091.0,99065.0,0.0907]
[1732306216896,0.36181958,99091.0,99043.0,0.3608]
[1732306216897,0.3608,99066.0,99043.0,0.3608]
[1732306217095,0.12388,99065.0,99061.0,0.018763]
[1732306217502,0.050425,99062.0,99061.0,0.018763]
[1732306217702,0.06726052,99065.0,99061.0,0.018763]
[1732306219096,0.3608,99066.0,99061.0,0.018763]
[1732306219097,0.12392,99064.0,99061.0,0.018763]
[1732306219304,0.12392,99064.0,99063.0,0.050424]
[1732306219507,0.12392,99064.0,99062.0,0.018763]
[1732306219902,0.06730174,99064.0,99062.0,0.018763]
[1732306221902,0.06730174,99064.0,99030.0,0.14643462]
[1732306221903,0.06730174,99064.0,99042.0,0.02013239]
[1732306222099,0.14643462,99060.0,99052.0,0.018763]
[1732306222403,0.06730174,99064.0,99052.0,0.018763]
[1732306222606,0.050426,99060.0,99052.0,0.018763]
[1732306223010,0.050429,99055.0,99052.0,0.018763]
[1732306223203,0.3608,99054.0,99034.0,0.5436]
[1732306223509,0.14643462,99050.0,99042.0,0.018763]
[1732306223713,0.050433,99047.0,99042.0,0.018763]
[1732306223905,0.12204,99049.0,99034.0,0.3608]
[1732306223906,0.050439,99035.0,99034.0,0.3608]
[1732306224414,0.3608,99045.0,99034.0,0.3608]
[1732306224615,0.050435,99044.0,99034.0,0.3608]
[1732306225114,0.12204,99043.0,99034.0,0.3608]
[1732306225813,0.050438,99038.0,99034.0,0.3608]
[1732306226012,0.12204,99043.0,99034.0,0.3608]
[1732306226813,0.050435,99042.0,99034.0,0.3608]
[1732306227214,0.41133105,99045.0,99034.0,0.3608]
[1732306227215,0.99208,99041.0,99038.0,0.018763]
[1732306227401,0.99208,99041.0,99039.0,0.018763]
[1732306227606,0.12208,99041.0,99039.0,0.018763]
[1732306227805,0.12208,99041.0,99034.0,0.3608]
[1732306227806,0.050438,99036.0,99034.0,0.3608]
[1732306228208,0.12208,99035.0,99034.0,0.3608]
[1732306229106,0.48288,99035.0,99012.0,0.02013239]
[1732306229309,0.3608,99024.0,99015.0,0.018763]
[1732306229508,0.050446,99020.0,99015.0,0.018763]
[1732306229710,0.12208,99019.0,99015.0,0.018763]
[1732306229908,0.06544723,99019.0,99015.0,0.018763]
[1732306232218,0.06544723,99019.0,99018.0,0.018763]
[1732306232411,0.30416942,99024.0,99018.0,0.018763]
[1732306232714,0.12208,99023.0,99022.0,0.018763]
[1732306235916,0.30416942,99024.0,99022.0,0.018763]
[1732306236221,0.30416942,99024.0,99008.0,0.0201359]
[1732306236222,0.30416942,99024.0,99023.0,0.018763]
[1732306236423,0.42624942,99024.0,99023.0,0.018763]
[1732306237716,0.47669342,99024.0,99023.0,0.018763]
[1732306238216,0.42624942,99024.0,99023.0,0.018763]
[1732306238417,0.30416942,99024.0,99023.0,0.069208]
[1732306238617,0.12212,99024.0,99023.0,0.069208]
[1732306238920,0.411239,99035.0,99028.0,0.050442]
[1732306238921,0.3608,99035.0,99028.0,0.050442]
[1732306239118,0.3608,99035.0,99034.0,0.018763]
[1732306239316,0.48292,99035.0,99034.0,0.018763]
[1732306239521,0.533359,99035.0,99034.0,0.018763]
[1732306239717,0.58447104,99035.0,99034.0,0.018763]
[1732306240024,0.53403204,99035.0,99034.0,0.018763]
[1732306240219,0.05111204,99035.0,99034.0,0.018763]
[1732306240524,0.12212,99037.0,99034.0,0.069202]
[1732306240824,0.12212,99037.0,99035.0,0.018763]
[1732306241022,0.12212,99037.0,99030.0,0.0922]
[1732306241023,0.12212,99043.0,99036.0,0.018763]
[1732306241326,0.4100742,99047.0,99046.0,0.018763]
[1732306241617,0.5826272,99047.0,99046.0,0.018763]
[1732306241823,0.5321942,99047.0,99046.0,0.018763]
[1732306243024,0.4605072,99047.0,99046.0,0.018763]
[1732306243212,0.4100742,99047.0,99046.0,0.018763]
[1732306243412,0.4100742,99047.0,99030.0,0.0922]
[1732306243618,0.14643462,99040.0,99038.0,0.018763]
[1732306243930,0.411237,99039.0,99038.0,0.018763]
[1732306244120,0.050438,99037.0,99030.0,0.0922]
[1732306244320,0.31625914,99031.0,99030.0,0.110963]
[1732306244516,0.31625914,99031.0,99030.0,0.0922]
[1732306244715,0.31625914,99031.0,99030.0,0.110963]
[1732306245419,0.411237,99039.0,99030.0,0.110963]
[1732306245623,0.3608,99039.0,99037.0,0.018763]
[1732306246228,0.3608,99039.0,99038.0,0.018763]
[1732306247822,0.29157687,99039.0,99038.0,0.018763]
[1732306248120,0.050434,99046.0,99038.0,0.018763]
[1732306248428,0.050434,99046.0,99033.0,0.050439]
[1732306248630,0.050434,99046.0,99045.0,0.018763]
[1732306248819,0.12212,99048.0,99045.0,0.018763]
[1732306249019,0.17353614,99048.0,99047.0,0.018763]
[1732306249929,0.22396814,99048.0,99047.0,0.018763]
[1732306250222,0.11690482,99048.0,99047.0,0.018763]
[1732306250821,0.16733682,99048.0,99047.0,0.018763]
[1732306251416,0.16733682,99048.0,99029.0,0.0895]
[1732306251417,0.47021682,99048.0,99029.0,0.0895]
[1732306251629,0.050438,99037.0,99036.0,0.018763]
[1732306252125,0.3608,99043.0,99036.0,0.018763]
[1732306252326,0.050437,99039.0,99036.0,0.018763]
[1732306252522,0.050437,99038.0,99036.0,0.018763]
[1732306252720,0.3608,99043.0,99042.0,0.018763]
[1732306252721,0.411235,99043.0,99042.0,0.018763]
[1732306255832,0.34201084,99043.0,99042.0,0.018763]
[1732306257326,0.050439,99035.0,99029.0,0.0895]
[1732306257527,0.050436,99040.0,99039.0,0.018763]
[1732306257931,0.29157584,99043.0,99039.0,0.018763]
[1732306258132,0.050435,99042.0,99039.0,0.018763]
[1732306258528,0.00056001,99047.0,99043.0,0.050435]
[1732306258722,0.12192,99044.0,99040.0,0.3608]
[1732306258926,0.12192,99044.0,99043.0,0.050435]
[1732306259231,0.12192,99044.0,99043.0,0.069198]
[1732306259533,0.12192,99048.0,99043.0,0.018763]
[1732306259839,0.050433,99047.0,99033.0,0.05044]
[1732306260029,0.172352,99048.0,99047.0,0.018763]
[1732306261330,0.12192,99048.0,99047.0,0.018763]
[1732306261837,0.172352,99048.0,99047.0,0.018763]
[1732306262036,0.050436,99040.0,99039.0,0.3608]
[1732306262341,0.12192,99048.0,99039.0,0.3608]
[1732306262342,0.3608,99049.0,99047.0,0.018763]
[1732306262638,0.411232,99049.0,99048.0,0.018763]
[1732306262825,0.533152,99049.0,99048.0,0.018763]
[1732306263026,0.533152,99049.0,99029.0,0.0895]
[1732306263229,0.050435,99042.0,99041.0,0.018763]
[1732306264438,0.050433,99046.0,99041.0,0.018763]
[1732306264642,0.411232,99049.0,99048.0,0.018763]
[1732306264841,0.47651614,99049.0,99048.0,0.018763]
[1732306266435,0.30416414,99049.0,99048.0,0.018763]
[1732306266634,0.30416414,99049.0,99048.0,0.069195]
[1732306267038,0.30416414,99049.0,99048.0,0.018763]
[1732306267742,0.35459614,99049.0,99048.0,0.018763]
[1732306269129,0.050432,99049.0,99048.0,0.018763]
[1732306271342,0.050432,99049.0,99030.0,0.3608]
[1732306271343,0.3608,99051.0,99030.0,0.3608]
[1732306271541,0.3420141,99038.0,99037.0,0.018763]
[1732306271737,0.050437,99038.0,99037.0,0.018763]
[1732306272129,0.3608,99040.0,99037.0,0.018763]
[1732306272330,0.050437,99038.0,99037.0,0.018763]
[1732306273448,0.05044,99033.0,99030.0,0.3608]
[1732306273944,0.12192,99034.0,99033.0,0.05044]
[1732306274140,0.43624163,99060.0,99033.0,0.018763]
[1732306274443,0.050432,99048.0,99047.0,0.018763]
[1732306274845,0.86379294,99049.0,99047.0,0.018763]
[1732306275040,0.12192,99050.0,99047.0,0.018763]
[1732306275835,0.050432,99048.0,99047.0,0.018763]
[1732306278136,0.86056001,99049.0,99030.0,0.3608]
[1732306278137,0.05044,99033.0,99030.0,0.411241]
[1732306278437,0.05043,99052.0,99030.0,0.411241]
[1732306278438,0.33912001,99060.0,99032.0,0.3608]
[1732306278641,0.33912001,99060.0,99052.0,0.790793]
[1732306278642,0.00151546,99053.0,99052.0,0.790793]
[1732306279748,0.00151546,99053.0,99052.0,0.740363]
[1732306280137,0.00151546,99053.0,99052.0,0.790793]
[1732306280344,0.00151546,99053.0,99052.0,0.740363]
[1732306281540,0.00151546,99053.0,99052.0,0.7216]
[1732306281736,0.050433,99046.0,99037.0,0.3608]
[1732306281946,0.050437,99038.0,99023.0,0.02012879]
[1732306282152,0.3608,99042.0,99023.0,0.02012879]
[1732306282153,0.3608,99030.0,99023.0,0.02012879]
[1732306282352,0.3608,99030.0,99015.0,0.1688]
[1732306282542,0.411245,99022.0,99015.0,0.1688]
[1732306282738,0.3608,99017.0,99015.0,0.0848]
[1732306282944,0.05045,99014.0,99003.0,0.00151478]
[1732306283248,0.3608,99005.0,99003.0,0.00151478]
[1732306283550,0.12172,99004.0,99003.0,0.00151478]
[1732306283757,0.12172,99004.0,99003.0,0.02027778]
[1732306284143,0.12172,99004.0,99003.0,0.018763]
[1732306284944,0.3608,99017.0,99009.0,0.050452]
[1732306285153,0.3608,99017.0,99016.0,0.018763]
[1732306285344,0.48256,99017.0,99016.0,0.018763]
[1732306287555,0.533008,99017.0,99016.0,0.018763]
[1732306287950,0.05045,99013.0,99000.0,0.150457]
[1732306288144,0.3608,99009.0,99004.0,0.018763]
[1732306289356,0.3608,99009.0,99005.0,0.018763]
[1732306289758,0.3608,99009.0,99000.0,0.1]
[1732306289949,0.050459,98996.0,98968.0,0.050472]
[1732306290144,0.19708383,99000.0,98973.0,0.05047]
[1732306290458,0.12176,98999.0,98978.0,0.3614]
[1732306290654,0.12176,98999.0,98991.0,0.050461]
[1732306291157,0.12176,98999.0,98986.0,0.050463]
[1732306291354,0.12176,98999.0,98978.0,0.3614]
[1732306291355,0.12176,98999.0,98989.0,0.050462]
[1732306291751,0.12176,98999.0,98983.0,0.050465]
[1732306291955,0.172217,98999.0,98985.0,0.050464]
[1732306292559,0.172217,98999.0,98986.0,0.050464]
[1732306292857,0.12176,98999.0,98988.0,0.050463]
[1732306293050,0.12176,98999.0,98978.0,0.3614]
[1732306293250,0.12176,98999.0,98985.0,0.050464]
[1732306293662,0.12176,98999.0,98987.0,0.050463]
[1732306294260,0.12176,98999.0,98986.0,0.050464]
[1732306294756,0.14662683,99000.0,98998.0,0.3608]
[1732306294946,0.05122668,99017.0,98998.0,0.3608]
[1732306294947,0.12176,99003.0,98999.0,0.018763]
[1732306295154,0.12176,99003.0,99002.0,0.050456]
[1732306295347,0.06510626,99003.0,99002.0,0.069219]
[1732306296060,0.86,99028.0,99002.0,0.6608]
[1732306296255,0.00052001,99028.0,99027.0,0.069206]
[1732306296561,0.12176,99032.0,99027.0,0.069206]
[1732306296562,0.12176,99032.0,99031.0,0.050441]
[1732306297360,0.12176,99037.0,99025.0,0.0883]
[1732306297561,0.12176,99037.0,99030.0,0.018763]
[1732306297771,0.12176,99037.0,99033.0,0.050439]
[1732306298057,0.12176,99037.0,99036.0,0.050438]
[1732306298756,0.12176,99037.0,99035.0,0.050439]
[1732306298961,0.12176,99037.0,99031.0,0.018763]
[1732306299260,0.12176,99037.0,99033.0,0.05044]
[1732306299458,0.12176,99037.0,99035.0,0.050439]
[1732306299649,0.12176,99037.0,99031.0,0.018763]
[1732306299855,0.12176,99037.0,99033.0,0.05044]
[1732306300156,0.12176,99037.0,99036.0,0.050438]
[1732306300555,0.12176,99037.0,99034.0,0.050439]
[1732306300755,0.12176,99037.0,99026.0,0.0802]
[1732306301057,0.05020179,99039.0,99038.0,0.050437]
[1732306301257,0.04960178,99039.0,99038.0,0.0692]
[1732306301451,0.12176,99044.0,99041.0,0.050436]
[1732306301653,0.05003217,99044.0,99041.0,0.018763]
[1732306301858,0.66523544,99042.0,99025.0,0.0883]
[1732306302049,0.3608,99026.0,99012.0,0.05045]
[1732306302250,0.3608,99026.0,99007.0,0.533]
[1732306302251,0.3608,99026.0,99023.0,0.018763]
[1732306303458,0.3608,99026.0,99025.0,0.050444]
[1732306303654,0.3608,99026.0,99025.0,0.069207]
[1732306303961,0.12176,99028.0,99027.0,0.050443]
[1732306304160,0.41169809,99047.0,99027.0,0.018763]
[1732306304360,0.12176,99040.0,99039.0,0.018763]
[1732306305358,0.12176,99040.0,99039.0,0.0692]
[1732306306553,0.12176,99040.0,99039.0,0.018763]
[1732306307357,0.12176,99040.0,99039.0,0.0692]
[1732306309657,0.41169809,99047.0,99039.0,0.018763]
[1732306309658,0.050434,99045.0,99039.0,0.018763]
[1732306309857,0.5340181,99047.0,99040.0,0.018763]